Cogmind - Beta 16 @@@ ROGUE MODE // 2025.12.27 @ 21:12:15 Player: AnotherZach Result: Destroyed by G-73 Enforcer with Phase Gun Performance ------------- Evolutions (8) 4000 Regions Visited (18) 3600 Robots Destroyed (102) 510 Value Destroyed (4086) 4086 Prototype IDs (17) 340 Alien Tech Used (0) 0 Bonus (3491) 3491 TOTAL SCORE: 16027 Bonus ------- High Alert Combat Kills 74 Follower Combat Kills 634 Entered Garrisons 200 Entered DSFs 1000 Network Hubs Disabled 600 Built Enhanced Grunts 300 A7 Reached Mainframe 300 Met R17 at Cetus 500 Friendly Fire -117 Cogmind --------- Core Integrity 0/1450 Matter 33/300 Energy 100/100 System Corruption 5% Temperature Cool (0) Movement Treading (160) Location -2/Research Parts ------- > --- POWER (3) -------- (None) > --- PROPULSION (7) --- Biometal Heavy Treads Advanced Heavy Siege Treads Heavy Shield Leg Backup Propulsion VII > --- UTILITY (10) ----- Advanced Melee Analysis Suite Backup Plating VII > --- WEAPON (3) ------- (None) > --- INVENTORY (5) ---- Light Antimatter Reactor Large Storage Unit Improved Melee Analysis Suite Advanced Variable Charge Gun Railgun Peak State ------------ > --- POWER ------------ Light Antimatter Reactor Quantum Reactor > --- PROPULSION ------- Enhanced Flexi-carbon Leg Enhanced Flexi-carbon Leg Enhanced Flexi-carbon Leg Enhanced Flexi-carbon Leg Enhanced Flexi-carbon Leg Myomer Leg Myomer Leg > --- UTILITY ---------- Advanced Heat Sink Medium Storage Unit Centrium Medium Armor Plating Centrium Medium Armor Plating Experimental Thermal Shield Improved Hacking Suite System Shield > --- WEAPON ----------- Advanced KE Penetrator Advanced KE Penetrator Advanced KE Penetrator > --- INVENTORY -------- Quantum Reactor Flexi-carbon Leg Centrium Medium Armor Plating Graphene Brace Advanced Variable Charge Gun Advanced Variable Charge Gun Advanced KE Penetrator Advanced KE Penetrator Heavy Missile Launcher Power Maul [Rating: 137] Favorites ----------- Power Light Angular Momentum Engine Engine Light Angular Momentum Engine Power Core Neutrino Core Reactor Light Antimatter Reactor Propulsion Nuclear Pulse Thruster Treads Light Treads Leg Enhanced Flexi-carbon Leg Wheel Wheel Hover Unit Backup Propulsion VII Flight Unit Nuclear Pulse Thruster Utility System Shield Device Advanced Heat Sink Storage Medium Storage Unit Processor Improved Signal Interpreter Hackware System Shield Protection Centrium Medium Armor Plating Weapon Advanced KE Penetrator Energy Gun Improved EM Shotgun Energy Cannon Neutron Cannon Ballistic Gun Advanced KE Penetrator Launcher Heavy Missile Launcher Impact Weapon Powered Hammer Slashing Weapon Centrium Greatsword Special Melee Weapon Datajack Build | -11 -10 -9 -9 -8 -7 -6 -5 -5 -4 -4 -4 -4 -4 -3 -3 -2 -2 -2 ------- Run | Yrd Mat Mat Min Mat Fac Fac Fac DSF Fac Ext Cet Arc Hub Res DSF Res Gar Res Slots Evolved 16 | . . 2 . 2 2 2 2 . 2 . . . . 2 . 2 . . Power 2 | . . . . . . 1 . . . . . . . . . 1 . . Propulsion 5 | . . 1 . 2 . 1 1 . . . . . . . . . . . Utility 8 | . . 1 . . 2 . 1 . 1 . . . . 2 . 1 . . Weapon 1 | . . . . . . . . . 1 . . . . . . . . . Parts Attached 130 | 7 4 11 . 15 10 9 . 12 9 11 19 4 5 . 4 3 1 6 Power 16 | 1 . 1 . 1 1 3 . 2 1 2 1 1 1 . . . 1 . Engine 7 | 1 . 1 . 1 . 1 . 2 . . . . 1 . . . . . Core 5 | . . . . . 1 2 . . 1 1 . . . . . . . . Reactor 4 | . . . . . . . . . . 1 1 1 . . . . 1 . Propulsion 49 | 2 4 5 . 7 1 3 . 8 3 1 8 1 . . 1 1 . 4 Treads 5 | . 2 . . . . . . . . . 1 . . . . . . 2 Leg 17 | . . . . 2 1 1 . 3 . . 7 1 . . . 1 . 1 Wheel 5 | 2 2 . . . . . . . . . . . . . 1 . . . Hover 2 | . . 2 . . . . . . . . . . . . . . . . Flight 20 | . . 3 . 5 . 2 . 5 3 1 . . . . . . . 1 Utility 38 | 2 . 1 . 5 3 2 . 2 4 5 3 2 2 . 3 2 . 2 Device 12 | 1 . . . 1 1 . . 1 2 3 1 1 . . . 1 . . Storage 3 | 1 . . . 2 . . . . . . . . . . . . . . Processor 8 | . . . . 1 . 1 . 1 . . . . . . 3 . . 2 Hackware 8 | . . 1 . 1 1 . . . 1 1 . 1 1 . . 1 . . Protection 7 | . . . . . 1 1 . . 1 1 2 . 1 . . . . . Artifact . | . . . . . . . . . . . . . . . . . . . Weapon 27 | 2 . 4 . 2 5 1 . . 1 3 7 . 2 . . . . . Energy Gun 6 | 1 . 1 . . 2 . . . . . 1 . 1 . . . . . Energy Cannon 1 | . . . . . . . . . . . 1 . . . . . . . Ballistic Gun 8 | 1 . . . . . . . . . 2 5 . . . . . . . Ballistic Cannon . | . . . . . . . . . . . . . . . . . . . Launcher 1 | . . . . . . . . . . 1 . . . . . . . . Special Weapon . | . . . . . . . . . . . . . . . . . . . Impact Weapon 7 | . . 1 . 2 2 1 . . . . . . 1 . . . . . Slashing Weapon 2 | . . 1 . . . . . . 1 . . . . . . . . . Piercing Weapon . | . . . . . . . . . . . . . . . . . . . Special Melee Weapon 2 | . . 1 . . 1 . . . . . . . . . . . . . Unidentified Prototypes 15 | . . . . 1 3 2 . . 1 . 7 . . . . . . 1 Parts Lost 60 | . 7 7 . 1 2 6 . . 1 4 2 . 21 . 5 . 2 2 Power 5 | . 1 . . . . 1 . . . . . . 3 . . . . . Propulsion 28 | . 3 5 . 1 2 4 . . 1 2 2 . 6 . 1 . . 1 Utility 15 | . 1 . . . . 1 . . . 2 . . 5 . 3 . 2 1 Weapon 12 | . 2 2 . . . . . . . . . . 7 . 1 . . . Highest Loss Streak 15 | . 5 6 . 1 1 3 . . 1 1 1 . 15 . 5 . 1 1 To Critical Strikes . | . . . . . . . . . . . . . . . . . . . Average Backups 6 | 1 4 2 5 6 4 4 5 8 9 9 9 10 7 3 4 4 4 4 Power . | . . . . . . . . . . 1 1 . . . . . . 1 Propulsion 1 | 1 4 1 4 2 . . . . 3 2 . . . . . . . . Utility 2 | . . . . 3 2 3 4 5 4 3 3 2 2 1 2 3 2 1 Weapon 2 | . . . 1 . 1 1 1 2 1 2 3 6 4 2 1 1 1 2 Tool/Special . | . . . . . . . . . . . . . . . . . . . Unused Backups 22 | . . 2 . 6 2 1 . 1 1 1 4 . . . . . . 4 Power 2 | . . . . . . 1 . . . . . . . . . . . 1 Propulsion 3 | . . 1 . 2 . . . . . . . . . . . . . . Utility 11 | . . . . 1 2 . . 1 1 . 4 . . . . . . 2 Weapon 6 | . . 1 . 3 . . . . . 1 . . . . . . . 1 Tool/Special . | . . . . . . . . . . . . . . . . . . . Average Slot Usage (%) 75 | . 85 42 66 93 91 84 47 70 87 83 94 100 77 14 21 18 21 25 Engine 4 | . 13 3 11 9 6 4 . 4 9 4 . . . . . . . . Core 1 | . . . . . . 2 . . . 4 . . . . . . . 3 Reactor 2 | . . . . . . . . . . . 9 10 6 . . . . . Leg 6 | . . . . 4 2 7 . 9 . . 15 36 27 . . 2 3 1 Wheel 1 | . 13 11 . . . . . . . . . . . . . . . . Flight 18 | . . 11 33 36 31 24 11 19 29 27 16 . . . . . . 1 Device 5 | . 11 . . 3 5 . . 2 9 6 7 10 4 4 3 . 3 . Storage 3 | . 13 . . 5 . . . 5 5 5 5 5 4 . . . . . Processor 3 | . . . . 1 . 5 5 7 5 5 4 . . . 6 4 3 1 Hackware 11 | . . 3 11 16 22 20 17 17 14 12 10 10 10 9 9 10 8 . Protection 4 | . . . . . 6 5 . . . 5 7 10 10 . . . . 5 Energy Gun 1 | . 7 2 . . . 2 . . . . . . . . 1 . . 2 Ballistic Gun 3 | . 11 . . . . . . . . . 12 15 9 . . . . . Impact Weapon 4 | . . 2 11 17 7 7 11 1 5 4 . . 1 . . . . . Slashing Weapon 1 | . . 3 . . . . . . 4 4 . . . . . . . . Peak Build Rating 137 | 9 9 11 10 37 46 60 33 77 101 98 135 137 134 19 49 39 54 81 Average Rating 67 | 5 7 5 10 28 39 48 33 48 92 95 119 134 101 19 28 28 34 54 On Entrance 41 | . 9 2 10 10 30 35 33 33 77 97 92 135 134 19 19 17 39 2 Avg Prop Armor Cover (%) 12 | . 33 33 . 8 6 8 1 9 . . 6 . 21 . 17 25 25 27 Naked Turns 38 | . . 2 . . . . . . . . . . . . . . 9 27 Heaviest Build 80 | 13 13 7 6 26 23 29 6 35 47 56 80 77 79 1 6 3 8 22 Greatest Support 190 | 26 40 12 12 29 30 31 6 45 50 50 190 190 185 3 3 30 30 24 Greatest Overweight (x) 1 | . . . . 1 1 1 . 1 1 1 1 . 1 . 1 . . . Average Overweight (x) . | . . . . . . . . . . . . . . . . . . . Largest Inventory Capacity 10 | 8 8 5 5 10 10 10 5 10 10 10 10 10 10 5 5 5 5 5 Average Capacity 7 | 7 7 5 5 7 5 5 5 10 10 10 10 10 9 5 5 5 5 5 Most Carried 10 | 5 5 5 5 10 9 5 5 10 10 10 10 10 10 4 5 5 5 5 Average Carried 7 | 1 4 2 5 7 4 4 5 8 9 9 9 9 7 3 3 4 4 4 Final Capacity 10 | 8 5 5 5 10 5 5 5 10 10 10 10 10 5 5 5 5 5 5 Final Carried 10 | 5 2 5 5 10 5 5 5 10 10 10 10 10 3 4 5 5 5 5 Class Distribution -------------------- 28% | Hacker-Sprinter 24% | Hacker-Mutant 17% | Scavenger-Tank 13% | Mutant 12% | Scavenger-Mutant 3% | Scavenger-Sprinter Dominant Class ---------------- Mutant | -10/Materials Mutant | -9/Materials Scavenger-Mutant | -9/Mines Scavenger-Mutant | -8/Materials Hacker-Sprinter | -7/Factory Hacker-Mutant | -6/Factory Hacker-Mutant | -5/Factory Hacker-Mutant | -5/DSF Hacker-Sprinter | -4/Factory Hacker-Sprinter | -4/Extension Scavenger-Tank | -4/Cetus Scavenger-Tank | -4/Archives Scavenger-Mutant | -4/Hub_04(d) Hacker-Mutant | -3/Research Hacker-Mutant | -3/DSF Hacker-Mutant | -2/Research Hacker-Mutant | -2/Garrison Mutant | -2/Research Resources | -11 -10 -9 -9 -8 -7 -6 -5 -5 -4 -4 -4 -4 -4 -3 -3 -2 -2 -2 ----------- Run | Yrd Mat Mat Min Mat Fac Fac Fac DSF Fac Ext Cet Arc Hub Res DSF Res Gar Res Matter Collected 2549 | 91 269 99 . 160 129 176 . 90 195 226 656 260 155 . 8 . 35 . Remotely . | . . . . . . . . . . . . . . . . . . . Salvage Created 5105 | 91 272 191 17 202 215 195 . . 178 1328 1297 563 493 . 28 . 35 . Parts 212 | 6 25 16 . 1 5 3 . . 6 51 52 30 16 . . . 1 . Haulers Intercepted 5 | . 1 1 . 1 1 . . . . 1 . . . . . . . . Recyclers Shooed 3 | . 1 . . . 2 . . . . . . . . . . . . . Parts Field Recycled . | . . . . . . . . . . . . . . . . . . . Retrieved Matter . | . . . . . . . . . . . . . . . . . . . Parts Self-Destructed . | . . . . . . . . . . . . . . . . . . . Prevented . | . . . . . . . . . . . . . . . . . . . Parts Restored . | . . . . . . . . . . . . . . . . . . . Kills | -11 -10 -9 -9 -8 -7 -6 -5 -5 -4 -4 -4 -4 -4 -3 -3 -2 -2 -2 ------- Run | Yrd Mat Mat Min Mat Fac Fac Fac DSF Fac Ext Cet Arc Hub Res DSF Res Gar Res Combat Hostiles Destroyed 53 | . 8 5 . . 2 2 . . 1 17 8 4 5 . . . 1 . Melee 13 | . 1 4 . . 1 . . . 1 6 . . . . . . . . Guns 24 | . 5 1 . . 1 . . . . 1 8 4 3 . . . 1 . AOE 12 | . 2 . . . . 2 . . . 8 . . . . . . . . Classes Destroyed 14 | 2 4 3 . 1 1 . . . . 1 2 . . . . . . . Worker 5 | . . 1 . 1 . 3 . . . . . . . . . . . . Builder 6 | . 1 . 1 . 1 1 . . . . . . 2 . . . . . Tunneler 3 | 1 . . . . 1 1 . . . . . . . . . . . . Hauler 5 | . 1 1 . 1 1 . . . . 1 . . . . . . . . Recycler 8 | 1 . . . 1 . . . . 1 3 . . 2 . . . . . Operator 10 | . . 1 . . 3 . . . . 1 . 5 . . . . . . Watcher 5 | . . . . 2 . . . . 1 1 1 . . . . . . . Swarmer 16 | . 3 4 . . . . . . . 8 . . . . . . 1 . Grunt 14 | . 5 . . . 1 2 . . . 3 3 . . . . . . . Sentry 11 | . . 1 . . . . . . . 5 . 4 1 . . . . . Hunter 5 | . . . . . . . . . . 1 . . 4 . . . . . Programmer 2 | . . . . . 1 . . . 1 . . . . . . . . . Cetus Guard 5 | . . . . . . . . . . . 5 . . . . . . . Enhanced Grunt 4 | . . . . . . . . . . . 4 . . . . . . . Savage 2 | . . . . . . . . . . . 2 . . . . . . . Butcher 1 | . . . . . . . . . . . 1 . . . . . . . Best Kill Streak 12 | 2 6 5 1 2 3 2 . . 1 12 4 4 8 . . . 1 . Combat Bots Only 11 | . 3 4 . . 1 2 . . 1 11 3 2 4 . . . 1 . Max Kills in Single Turn 3 | 1 2 1 1 1 1 2 . . 1 3 2 1 2 . . . 1 . Gunslinging . | . . . . . . . . . . . . . . . . . . . Exploded 3 | . 2 . . . . 2 . . . 3 . . . . . . . . Melee 1 | . 1 1 . . 1 . . . 1 1 . . . . . . . . Uniques/NPCs Destroyed . | . . . . . . . . . . . . . . . . . . . Combat | -11 -10 -9 -9 -8 -7 -6 -5 -5 -4 -4 -4 -4 -4 -3 -3 -2 -2 -2 -------- Run | Yrd Mat Mat Min Mat Fac Fac Fac DSF Fac Ext Cet Arc Hub Res DSF Res Gar Res Hostile Shots Fired 1088 | . 77 85 . 13 17 140 . . 24 80 36 24 290 . 141 12 64 85 Missed 465 | . 21 28 . 8 8 85 . . 15 38 14 8 110 . 74 6 18 32 Hits 623 | . 56 57 . 5 9 55 . . 9 42 22 16 180 . 67 6 46 53 Melee 26 | . . . . . . . . . . . . . . . 8 . 18 . Projectile 597 | . 56 57 . 5 9 55 . . 9 42 22 16 180 . 59 6 28 53 AOE 2 | . . . . . . 1 . . . . . . . . 1 . . . Critical Strikes 34 | . 2 . . . . 1 . . . 1 4 . 14 . 2 . 7 3 Actively Blocked 11 | . . . . . . . . . . . . . 9 . 2 . . . Damage Taken 12654 | . 817 482 . 79 155 942 . . 183 848 381 358 4653 . 762 161 1460 1373 Core 3636 | . 200 257 . . . 135 . . . 71 7 41 854 . 597 133 1002 339 Absorbed by Shields 181 | . . . . . . . . . . 87 94 . . . . . . . Ignored by Resistances 120 | . . . . . . . . . . . 57 63 . . . . . . Regen/Repaired (Parts) 3 | . . . . . . 3 . . . . . . . . . . . . Core Remaining (%) 67 | 100 20 . 35 100 100 84 . 100 . . . . 15 . 54 . . . Volleys Fired 139 | 4 20 6 . . 4 1 . . . 6 32 31 17 . 3 . 15 . Largest 3 | 2 2 1 . . 1 1 . . . 2 3 3 3 . 2 . 1 . Hottest 240 | 60 60 65 . . 45 45 . . . 73 240 105 240 . 115 . 80 . Shots Fired 301 | 8 40 6 . . 4 1 . . . 8 82 93 39 . 5 . 15 . Gun 293 | 8 40 6 . . 4 1 . . . 4 82 93 35 . 5 . 15 . Cannon . | . . . . . . . . . . . . . . . . . . . Launcher 8 | . . . . . . . . . . 4 . . 4 . . . . . Special . | . . . . . . . . . . . . . . . . . . . Kinetic 235 | 4 20 . . . . . . . . 4 80 93 31 . 3 . . . Thermal 29 | . . 6 . . . . . . . . 2 . 4 . 2 . 15 . Explosive 8 | . . . . . . . . . . 4 . . 4 . . . . . Electromagnetic 29 | 4 20 . . . 4 1 . . . . . . . . . . . . Robot Hit Streak 12 | 4 8 6 . . 6 . . . . 4 9 10 12 . 1 . 3 . Robot Miss Streak 4 | 1 4 4 . . 1 2 . . . . 3 2 2 . 2 . 4 . Penetration Max 1 | . . . . . . . . . . . 1 1 1 . . . . . Secondary Targets 5 | . 1 . . . . . . . . . 2 . 2 . . . . . Max Gunslinging Chain 1 | . 1 . . . . . . . . . 1 . 1 . . . . . Shots Hit Robots 282 | 6 24 15 1 8 17 5 . . 5 35 64 63 31 . 1 . 7 . Core Hits 141 | 3 18 12 . 1 6 3 . . 1 24 34 19 18 . . . 2 . Critical Kills 21 | . . . . 1 . . . . . 1 12 5 2 . . . . . Critical Parts Destroyed 25 | . . . 1 2 1 1 . . . 6 7 5 2 . . . . . Critical Strikes 63 | . . . 1 3 1 1 . . 1 12 26 14 4 . . . . . Destroy 41 | . . . . . . . . . . 2 23 14 2 . . . . . Smash 14 | . . . 1 3 1 1 . . . 6 . . 2 . . . . . Sever 8 | . . . . . . . . . 1 4 3 . . . . . . . Melee Attacks 194 | . . 17 1 20 38 34 . . 24 42 10 . 8 . . . . . Impact 127 | . . 2 1 20 37 34 . . 10 15 . . 8 . . . . . Slashing 66 | . . 15 . . . . . . 14 27 10 . . . . . . . Piercing . | . . . . . . . . . . . . . . . . . . . Sneak Attacks 35 | . . 1 1 4 4 5 . . 1 10 9 . . . . . . . Combat Hostiles . | . . . . . . . . . . . . . . . . . . . Follow-up Attacks 8 | . . . . 2 . . . . 2 4 . . . . . . . . Damage Inflicted 14135 | 77 435 376 110 661 1049 1270 . . 409 3563 2761 1791 1318 . 21 . 283 11 Guns 4859 | 77 317 80 . . 81 . . . . 68 1617 1791 566 . 21 . 241 . Cannons . | . . . . . . . . . . . . . . . . . . . Explosions 1935 | . 71 . . . 47 732 . . . 631 . . 454 . . . . . Melee 7213 | . . 296 110 661 921 538 . . 409 2864 1144 . 270 . . . . . Ramming 128 | . 47 . . . . . . . . . . . 28 . . . 42 11 Kinetic 4227 | 35 150 . . . . . . . . 68 1617 1791 566 . . . . . Thermal 1192 | . 71 80 . . 47 732 . . . . . . . . 21 . 241 . Explosive 1085 | . . . . . . . . . . 631 . . 454 . . . . . Electromagnetic 290 | 42 167 . . . 81 . . . . . . . . . . . . . Impact 3152 | . . 98 110 661 921 538 . . 117 437 . . 270 . . . . . Slashing 4061 | . . 198 . . . . . . 292 2427 1144 . . . . . . . Piercing . | . . . . . . . . . . . . . . . . . . . Highest Corruption 19 | . 2 . . . 2 . . . . . . . 19 . 4 . 3 5 Average Corruption 3 | . 2 . . . 2 . . . . . . . 9 . 4 . 2 3 Corruption Purged . | . . . . . . . . . . . . . . . . . . . Corruption Blocked . | . . . . . . . . . . . . . . . . . . . Effects 16 | . . . . . 2 . . . . . . . 5 . 1 . . 8 Message Errors 5 | . . . . . . . . . . . . . 1 . 1 . . 3 Matter Fused 3 | . . . . . . . . . . . . . 2 . . . . 1 Heat Flow Errors 1 | . . . . . . . . . . . . . . . . . . 1 Energy Discharges 2 | . . . . . . . . . . . . . . . . . . 2 Parts Fused 1 | . . . . . 1 . . . . . . . . . . . . . Data Loss (minor) 3 | . . . . . 1 . . . . . . . 1 . . . . 1 Alerts 1 | . . . . . . . . . . . . . 1 . . . . . Overload Shots 4 | . . . . . . . . . . . 2 . 2 . . . . . Overflow Damage 2282 | . . . 110 309 499 495 . . 163 555 72 . 79 . . . . . Projectiles . | . . . . . . . . . . . . . . . . . . . Explosions 125 | . . . . . . 99 . . . 26 . . . . . . . . Melee 2157 | . . . 110 309 499 396 . . 163 529 72 . 79 . . . . . Knockbacks 8 | . . . 1 2 3 1 . . . . . . 1 . . . . . Impact 8 | . . . 1 2 3 1 . . . . . . 1 . . . . . Kinetic . | . . . . . . . . . . . . . . . . . . . Secondary . | . . . . . . . . . . . . . . . . . . . Self-Inflicted Damage 169 | . 38 . . . 21 . . . . . . . 66 . . . 42 2 Shots 4 | . 1 . . . 1 . . . . . . . 2 . . . . . Rammed 39 | . 30 . . . . . . . . . . . . . . . . 9 Targets Rammed 43 | . 31 . . . . . . . . . . . 3 . . . . 9 Kicked 3 | . . . . . . . . . . . . . 3 . . . . . Crushed 1 | . 1 . . . . . . . . . . . . . . . . . Highest Temperature 316 | . 32 112 . 3 21 43 . . . 15 316 5 154 . . . 69 136 Average Temperature 29 | . 16 49 . 1 6 19 . . . 15 122 3 48 . . . 52 66 Received Heat Transfer 1789 | . 423 18 . 18 54 333 . . 9 184 30 63 360 . . 27 9 261 Siege Activations . | . . . . . . . . . . . . . . . . . . . Martial Activations . | . . . . . . . . . . . . . . . . . . . Shielding Activations . | . . . . . . . . . . . . . . . . . . . Robots Disrupted . | . . . . . . . . . . . . . . . . . . . Combat Hostiles . | . . . . . . . . . . . . . . . . . . . Robots Corrupted 15 | . . . 1 2 5 2 . . . 3 . . 2 . . . . . Combat Hostiles 4 | . . . . . . . . . . 2 . . 2 . . . . . Parts Fried 34 | . . . 2 6 13 8 . . . 4 . . 1 . . . . . Impact Corruptions 49 | . . . 4 9 14 11 . . 2 7 . . 2 . . . . . Robots Melted . | . . . . . . . . . . . . . . . . . . . Combat Hostiles . | . . . . . . . . . . . . . . . . . . . Parts Melted . | . . . . . . . . . . . . . . . . . . . Heat Transferred 996 | . . 100 . . 100 500 . . . . . . . . 37 . 259 . Parts Sabotaged . | . . . . . . . . . . . . . . . . . . . Parts Stolen . | . . . . . . . . . . . . . . . . . . . Parts Stripped . | . . . . . . . . . . . . . . . . . . . Power Chain Reactions 2 | . 1 . . . 1 . . . . . . . . . . . . . Alert | -11 -10 -9 -9 -8 -7 -6 -5 -5 -4 -4 -4 -4 -4 -3 -3 -2 -2 -2 ------- Run | Yrd Mat Mat Min Mat Fac Fac Fac DSF Fac Ext Cet Arc Hub Res DSF Res Gar Res Maximum Alert Level 3 | . . . . . . 3 1 1 2 2 . . 1 . . . . . Low Security (%) 82 | 100 100 100 100 100 100 44 . . 38 67 100 100 93 100 100 100 100 100 Level 1 11 | . . . . . . 16 100 100 59 23 . . 6 . . . . . Level 2 5 | . . . . . . 35 . . 1 8 . . . . . . . . Level 3 . | . . . . . . 4 . . . . . . . . . . . . Level 4 . | . . . . . . . . . . . . . . . . . . . Level 5 . | . . . . . . . . . . . . . . . . . . . High Security . | . . . . . . . . . . . . . . . . . . . Max Security . | . . . . . . . . . . . . . . . . . . . Sterilizations 1 | . . . . . . . . 1 . . . . . . . . . . Peak Influence 736 | 10 123 82 32 105 71 736 357 264 403 534 128 151 292 104 85 33 126 110 Initial 357 | . . 11 12 6 16 21 357 249 138 197 35 22 42 104 70 27 17 78 Average 123 | 2 73 31 7 53 36 285 357 258 212 187 56 104 138 101 59 27 100 70 Influence Increases 5328 | 10 218 234 57 327 298 1181 . 15 605 817 398 199 587 . 30 16 144 192 Destroy 0b10 Robot/C 1340 | . 160 100 20 . 60 80 . . 20 480 220 80 100 . . . 20 . Destroy 0b10 Robot/NC 220 | 10 10 15 5 25 35 25 . . 10 30 10 25 20 . . . . . Destroy Leader 156 | . 12 22 . 6 12 20 . . 2 42 10 . 30 . . . . . Allied During Kill 211 | . . . 2 . . 8 . . . 86 115 . . . . . . . Trap Triggered on 0b10 10 | . . . . . . 10 . . . . . . . . . . . . Successful Hack 266 | . . 6 . 46 7 48 . . 42 52 . . 8 . . 16 14 27 Select Force Hacks 330 | . . . . 30 . 100 . . 50 . . . 150 . . . . . Disable Machine 315 | . . . . 15 45 120 . . . 30 15 60 15 . 15 . . . Anti-Garrison Action 250 | . . . . . . . . . 200 . . . . . . . 50 . Destroy Structure 295 | . 6 1 . 10 19 35 . . 26 52 28 34 84 . . . . . Partial Spotted 180 | . . . . 60 45 15 . . 30 15 . . . . . . . 15 Lose Combat Pursuer 1755 | . 30 90 30 135 75 720 . 15 225 30 . . 180 . 15 . 60 150 Influence Decreases 5228 | 10 190 231 71 306 293 495 372 108 466 1156 406 134 509 105 74 43 26 233 Entered New Map 1256 | . . 17 19 11 22 22 372 108 126 206 29 34 79 95 24 23 6 63 Time Decay 2167 | 10 120 75 32 175 211 253 . . 164 410 317 100 120 10 . 20 . 150 Search Patrol Dispatched 200 | . . . . . . 100 . . . . . . 100 . . . . . Lost Part 595 | . 70 65 . 10 20 60 . . 10 40 20 . 210 . 50 . 20 20 Lost Ally 384 | . . . 20 4 40 60 . . 20 200 40 . . . . . . . Purge Threat 626 | . . 74 . 106 . . . . 146 300 . . . . . . . . Squads Dispatched 37 | . 1 1 . 3 4 8 . . 5 1 . . 8 . 1 . . 5 Investigation 20 | . . . . 2 2 7 . . 2 . . . 4 . . . . 3 Extermination 5 | . . . . . 1 1 . . 2 . . . . . . . . 1 Reinforcement 10 | . 1 1 . 1 1 . . . 1 1 . . 2 . 1 . . 1 Assault . | . . . . . . . . . . . . . . . . . . . Garrison 2 | . . . . . . . . . . . . . 2 . . . . . Intercept . | . . . . . . . . . . . . . . . . . . . Searches Triggered 2 | . . . . . . 1 . . . . . . 1 . . . . . Construction Impeded 1 | . . . . . 1 . . . . . . . . . . . . . Haulers Reinforced . | . . . . . . . . . . . . . . . . . . . Active Scanning Responses . | . . . . . . . . . . . . . . . . . . . Cargo Convoy Interrupts . | . . . . . . . . . . . . . . . . . . . Stealth | -11 -10 -9 -9 -8 -7 -6 -5 -5 -4 -4 -4 -4 -4 -3 -3 -2 -2 -2 --------- Run | Yrd Mat Mat Min Mat Fac Fac Fac DSF Fac Ext Cet Arc Hub Res DSF Res Gar Res Distress Signals 18 | . 2 . . . 1 3 . . . 3 2 . 5 . . . . 2 Communications Jammed . | . . . . . . . . . . . . . . . . . . . Distress Signals . | . . . . . . . . . . . . . . . . . . . Times Spotted 294 | . 16 15 3 20 17 61 . 5 24 21 12 10 42 . 5 1 19 23 Peak Tracking Total 26 | . 6 8 3 7 3 13 . 4 7 9 5 1 26 . 4 1 19 8 Tactical Retreats 47 | . 2 4 2 4 4 14 . 1 4 2 . . 3 . 1 . 2 4 Traps | -11 -10 -9 -9 -8 -7 -6 -5 -5 -4 -4 -4 -4 -4 -3 -3 -2 -2 -2 ------- Run | Yrd Mat Mat Min Mat Fac Fac Fac DSF Fac Ext Cet Arc Hub Res DSF Res Gar Res Traps Triggered 13 | . 1 . . . 3 . . . . 3 . . 1 . 1 . . 4 Indirectly . | . . . . . . . . . . . . . . . . . . . Trap Hack Attempts . | . . . . . . . . . . . . . . . . . . . Triggered . | . . . . . . . . . . . . . . . . . . . Disarmed 7 | . . . . . . 6 . . . 1 . . . . . . . . Reprogrammed 5 | . . . . 4 . 1 . . . . . . . . . . . . Reused 1 | . . . . . . 1 . . . . . . . . . . . . Traps Extracted . | . . . . . . . . . . . . . . . . . . . Installed . | . . . . . . . . . . . . . . . . . . . Triggered 1 | . . . . . . 1 . . . . . . . . . . . . Objects Rigged 10 | . . . . . . 7 . . 3 . . . . . . . . . Exploded 1 | . . . . . . 1 . . . . . . . . . . . . Machines | -11 -10 -9 -9 -8 -7 -6 -5 -5 -4 -4 -4 -4 -4 -3 -3 -2 -2 -2 ---------- Run | Yrd Mat Mat Min Mat Fac Fac Fac DSF Fac Ext Cet Arc Hub Res DSF Res Gar Res Machines Disabled 21 | . . . . 1 3 8 . . . 2 1 4 1 . 1 . . . Max in Single Turn 5 | . . . . 1 1 5 . . . 1 1 1 1 . 1 . . . Garrison Access 1 | . . . . . . . . . 1 . . . . . . . . . Network Hub 3 | . . . . . . . . . . . . . 3 . . . . . Machines Repaired . | . . . . . . . . . . . . . . . . . . . Machines Dismantled . | . . . . . . . . . . . . . . . . . . . Machines Sabotaged 6 | . . . . . . 2 . . 1 . . . 3 . . . . . Overloaded Fab Kills . | . . . . . . . . . . . . . . . . . . . Hacking | -11 -10 -9 -9 -8 -7 -6 -5 -5 -4 -4 -4 -4 -4 -3 -3 -2 -2 -2 --------- Run | Yrd Mat Mat Min Mat Fac Fac Fac DSF Fac Ext Cet Arc Hub Res DSF Res Gar Res Machines Accessed 67 | . 2 3 . 12 7 11 1 . 7 13 . . 4 1 . 2 1 3 Terminals 45 | . 1 3 . 10 2 5 1 . 4 11 . . 4 1 . . 1 2 Fabricators 4 | . . . . . 1 1 . . 1 . . . . . . 1 . . Repair Stations 2 | . . . . . . 1 . . . . . . . . . . . 1 Recycling Units 8 | . 1 . . 1 2 2 . . . 2 . . . . . . . . Scanalyzers 4 | . . . . 1 1 1 . . 1 . . . . . . . . . Garrison Access 4 | . . . . . 1 1 . . 1 . . . . . . 1 . . Total Hacks 284 | . 8 14 . 68 27 53 1 . 39 34 . . 9 3 . 10 7 11 Successful 149 | . 4 9 . 37 13 24 1 . 26 19 . . 5 1 . 6 2 2 Failed 134 | . 4 5 . 30 14 29 . . 13 15 . . 4 2 . 4 5 9 Catastrophic 19 | . . . . . 4 4 . . 1 2 . . 1 . . . 3 4 Database Lockouts 1 | . . . . 1 . . . . . . . . . . . . . . Manual 170 | . 5 12 . 45 14 35 . . 25 5 1 . 9 . . 4 7 8 Terminals 187 | . 5 14 . 57 3 27 1 . 24 29 . . 9 3 . . 7 8 Fabricators 24 | . . . . . 7 3 . . 7 . . . . . . 7 . . Repair Stations 4 | . . . . . . 1 . . . . . . . . . . . 3 Recycling Units 20 | . 3 . . 2 6 4 . . . 5 . . . . . . . . Scanalyzers 26 | . . . . 9 5 6 . . 6 . . . . . . . . . Garrison Access 23 | . . . . . 6 12 . . 2 . . . . . . 3 . . Terminal Hacks 43 | . . 3 . 12 . 5 1 . 4 15 . . 1 1 . . 1 . Part Schematic 1 | . . . . 1 . . . . . . . . . . . . . . Robot Schematic 1 | . . . . 1 . . . . . . . . . . . . . . Robot Analysis 3 | . . 1 . 1 . . . . 1 . . . . . . . . . Prototype ID Bank 1 | . . . . 1 . . . . . . . . . . . . . . Open Door 8 | . . . . . . . . . . 8 . . . . . . . . Open DSF 2 | . . . . . . . 1 . . . . . . 1 . . . . Level Access Points 1 | . . . . . . . . . . . . . 1 . . . . . Branch Access Points 2 | . . . . 1 . 1 . . . . . . . . . . . . Emergency Access Points 1 | . . . . . . 1 . . . . . . . . . . . . Terminal Index 3 | . . 1 . 1 . . . . . 1 . . . . . . . . Alert Level 2 | . . . . . . . . . . 2 . . . . . . . . Unreport Threat 6 | . . 1 . 2 . . . . 1 2 . . . . . . . . Locate Traps 3 | . . . . 1 . 1 . . . 1 . . . . . . . . Disarm Traps 2 | . . . . . . 1 . . . 1 . . . . . . . . Reprogram Traps 3 | . . . . 2 . 1 . . . . . . . . . . . . Hauler Manifests 1 | . . . . 1 . . . . . . . . . . . . . . Zone Layout 2 | . . . . . . . . . 2 . . . . . . . . . Garrison Registry 1 | . . . . . . . . . . . . . . . . . 1 . Fabricator Hacks 6 | . . . . . 2 . . . 3 . . . . . . 1 . . Network Status 4 | . . . . . 2 . . . 1 . . . . . . 1 . . Load Schematic 1 | . . . . . . . . . 1 . . . . . . . . . Build 1 | . . . . . . . . . 1 . . . . . . . . . Repair Station Hacks 1 | . . . . . . . . . . . . . . . . . . 1 Refit 1 | . . . . . . . . . . . . . . . . . . 1 Recycling Unit Hacks 7 | . 2 . . 2 . 2 . . . 1 . . . . . . . . Retrieve Matter 1 | . . . . . . 1 . . . . . . . . . . . . Retrieve Components 6 | . 2 . . 2 . 1 . . . 1 . . . . . . . . Scanalyzer 21 | . . . . 8 2 6 . . 5 . . . . . . . . . Insert Component 7 | . . . . 3 1 2 . . 1 . . . . . . . . . Analyze 9 | . . . . 5 . 2 . . 2 . . . . . . . . . Retrieve Study 5 | . . . . . 1 2 . . 2 . . . . . . . . . Garrison Access Hacks 1 | . . . . . . . . . . . . . . . . 1 . . Unlock Access 1 | . . . . . . . . . . . . . . . . 1 . . Unauthorized Hacks 70 | . 2 6 . 15 9 11 . . 14 3 . . 4 . . 4 1 1 Terminals 48 | . 2 6 . 14 . 7 . . 11 2 . . 4 . . . 1 1 Track 8 | . . 1 . 4 . . . . 2 1 . . . . . . . . Assimilate 4 | . . . . 1 . . . . 3 . . . . . . . . . Botnet 8 | . 1 1 . 2 . 2 . . 1 1 . . . . . . . . Detonate 2 | . . . . . . 1 . . 1 . . . . . . . . . Disrupt 2 | . . 1 . 1 . . . . . . . . . . . . . . Operators 1 | . . . . . . . . . 1 . . . . . . . . . Skim 11 | . 1 3 . 5 . . . . 2 . . . . . . . . . Sabotage 9 | . . . . 1 . 2 . . 1 . . . 4 . . . . 1 Search 2 | . . . . . . 2 . . . . . . . . . . . . Override 1 | . . . . . . . . . . . . . . . . . 1 . Fabricators 12 | . . . . . 4 2 . . 2 . . . . . . 4 . . Report 2 | . . . . . 1 . . . . . . . . . . 1 . . Prioritize 2 | . . . . . 1 . . . . . . . . . . 1 . . Liberate 4 | . . . . . 1 1 . . 1 . . . . . . 1 . . Haulers 3 | . . . . . 1 . . . 1 . . . . . . 1 . . Recompile 1 | . . . . . . 1 . . . . . . . . . . . . Repair Stations 1 | . . . . . . 1 . . . . . . . . . . . . Patch 1 | . . . . . . 1 . . . . . . . . . . . . Recycling Units 2 | . . . . . 1 . . . . 1 . . . . . . . . Reject 2 | . . . . . 1 . . . . 1 . . . . . . . . Scanalyzers 1 | . . . . 1 . . . . . . . . . . . . . . Extract 1 | . . . . 1 . . . . . . . . . . . . . . Garrison Access 6 | . . . . . 4 1 . . 1 . . . . . . . . . Broadcast 1 | . . . . . 1 . . . . . . . . . . . . . Decoy 1 | . . . . . 1 . . . . . . . . . . . . . Reprogram 2 | . . . . . 1 1 . . . . . . . . . . . . Intercept 1 | . . . . . 1 . . . . . . . . . . . . . Jam 1 | . . . . . . . . . 1 . . . . . . . . . Data Cores Recovered 1 | . . . . . 1 . . . . . . . . . . . . . Used . | . . . . . . . . . . . . . . . . . . . Hacking Detections 50 | . 2 3 . 11 7 7 . . 7 6 . . 2 1 . 2 1 1 Full Trace Events 3 | . . . . . 2 . . . . . . . . . . . . 1 Feedback Events . | . . . . . . . . . . . . . . . . . . . Feedback Blocked . | . . . . . . . . . . . . . . . . . . . Robot Schematics Acquired 1 | . . . . 1 . . . . . . . . . . . . . . Robots Built . | . . . . . . . . . . . . . . . . . . . Authchips . | . . . . . . . . . . . . . . . . . . . Time . | . . . . . . . . . . . . . . . . . . . Total Robot Build Rating . | . . . . . . . . . . . . . . . . . . . Part Schematics Acquired 8 | . . . . 5 . 2 . . 1 . . . . . . . . . Parts Built 1 | . . . . . . . . . 1 . . . . . . . . . Authchips 1 | . . . . . . . . . 1 . . . . . . . . . Time 53 | . . . . . . . . . 53 . . . . . . . . . Total Part Build Rating 6 | . . . . . . . . . 6 . . . . . . . . . Part Studies Acquired 5 | . . . . . 1 2 . . 2 . . . . . . . . . Parts Repaired . | . . . . . . . . . . . . . . . . . . . Time . | . . . . . . . . . . . . . . . . . . . Parts Recycled . | . . . . . . . . . . . . . . . . . . . Recycled Matter . | . . . . . . . . . . . . . . . . . . . Retrieved Matter . | . . . . . . . . . . . . . . . . . . . Retrieved Components 3 | . . . . 2 . . . . . 1 . . . . . . . . Parts Scanalyzed 7 | . . . . 3 1 2 . . 1 . . . . . . . . . Part Schematics Acquired 6 | . . . . 3 . 2 . . 1 . . . . . . . . . Parts Damaged 1 | . . . . 1 . . . . . . . . . . . . . . Bothacking | -11 -10 -9 -9 -8 -7 -6 -5 -5 -4 -4 -4 -4 -4 -3 -3 -2 -2 -2 ------------ Run | Yrd Mat Mat Min Mat Fac Fac Fac DSF Fac Ext Cet Arc Hub Res DSF Res Gar Res Used RIF Installer . | . . . . . . . . . . . . . . . . . . . Robots Hacked . | . . . . . . . . . . . . . . . . . . . Non-combat . | . . . . . . . . . . . . . . . . . . . Combat . | . . . . . . . . . . . . . . . . . . . Robot Hacks Applied . | . . . . . . . . . . . . . . . . . . . Relay Couplers Released . | . . . . . . . . . . . . . . . . . . . Fabnet Peak Effective % . | . . . . . . . . . . . . . . . . . . . Robots Rewired 10 | . . . . . . . . . . 10 . . . . . . . . Allies Hacked . | . . . . . . . . . . . . . . . . . . . Hacks Repelled . | . . . . . . . . . . . . . . . . . . . Allies | -11 -10 -9 -9 -8 -7 -6 -5 -5 -4 -4 -4 -4 -4 -3 -3 -2 -2 -2 -------- Run | Yrd Mat Mat Min Mat Fac Fac Fac DSF Fac Ext Cet Arc Hub Res DSF Res Gar Res Total Allies 31 | . . . 3 1 2 3 . . 2 15 5 . . . . . . . Largest Group 8 | . . . 3 1 2 3 . . 2 8 8 1 . . . . . . Highest-Rated Group 612 | . . . 40 26 64 87 . . 36 365 612 143 . . . . . . Highest-Rated Ally 159 | . . . 16 26 32 29 . . 26 159 159 143 . . . . . . Initial Warlord ECA Mod 9 | . . . . . . . . . 9 9 9 9 9 8 8 7 7 7 Total Orders 2 | . . . . . . . . . 2 . . . . . . . . . STAY 1 | . . . . . . . . . 1 . . . . . . . . . FOLLOW 1 | . . . . . . . . . 1 . . . . . . . . . Ally Attacks 133 | . . . 5 . 6 21 . . . 73 27 1 . . . . . . Total Damage 3215 | . . . 63 . 221 264 . . . 1857 789 21 . . . . . . Kills 16 | . . . 1 . 2 2 . . . 7 4 . . . . . . . Allies Corrupted . | . . . . . . . . . . . . . . . . . . . Allies Melted 3 | . . . . . . . . 1 . . . . . . . . . 2 Intel | -11 -10 -9 -9 -8 -7 -6 -5 -5 -4 -4 -4 -4 -4 -3 -3 -2 -2 -2 ------- Run | Yrd Mat Mat Min Mat Fac Fac Fac DSF Fac Ext Cet Arc Hub Res DSF Res Gar Res Active Infowar (turns) 388 | 1 225 . . 162 . . . . . . . . . . . . . . Sensors 162 | . . . . 162 . . . . . . . . . . . . . . Terrain 226 | 1 225 . . . . . . . . . . . . . . . . . Robot Analysis Total 3 | . . 1 . 1 . . . . 1 . . . . . . . . . Derelict Logs Recovered . | . . . . . . . . . . . . . . . . . . . Drone Launches . | . . . . . . . . . . . . . . . . . . . Drone Recoveries . | . . . . . . . . . . . . . . . . . . . Exploration | -11 -10 -9 -9 -8 -7 -6 -5 -5 -4 -4 -4 -4 -4 -3 -3 -2 -2 -2 ------------- Run | Yrd Mat Mat Min Mat Fac Fac Fac DSF Fac Ext Cet Arc Hub Res DSF Res Gar Res Turns Passed 5558 | 61 275 212 90 402 443 573 4 110 349 986 791 210 254 27 67 54 342 308 Spaces Moved 6241 | 39 128 280 250 669 748 960 10 109 673 1079 370 85 135 52 96 68 145 345 Core 685 | 2 14 129 . . . . . . . . . . 17 52 96 47 131 197 Treads 138 | . 54 . . . . . . . . . 84 . . . . . . . Legs 550 | . . . . . . . . 38 . . 274 85 118 . . 21 14 . Wheels 97 | 37 60 . . . . . . . . . . . . . . . . . Hover 159 | . . 11 . . . . . . . . . . . . . . . 148 Flight 4612 | . . 140 250 669 748 960 10 71 673 1079 12 . . . . . . . Fastest Speed 21 | 50 50 34 34 27 27 34 35 21 21 24 104 120 50 50 50 50 50 50 Average Speed 49 | 88 115 42 34 35 31 44 35 69 25 26 154 120 113 50 50 71 56 62 Slowest Speed 190 | 100 160 65 34 112 122 122 35 190 101 27 190 120 120 50 100 120 120 80 Overloaded Moves 20 | . . . . . . 20 . . . . . . . . . . . . Propulsion Burnouts . | . . . . . . . . . . . . . . . . . . . Robots Hopped 26 | . . 2 . 1 5 5 . 3 2 7 1 . . . . . . . Potential Cave-ins 3 | . . . . . . . . . . . . . 3 . . . . . Cave-ins Triggered . | . . . . . . . . . . . . . . . . . . . Exploration Rate (%) 36 | 4 28 28 55 55 26 21 1 94 13 82 66 69 29 3 80 3 32 13 Regions Visited 18 Branch Regions 5 Pre-discovered Areas . | . . . . . . . . . . . . . . . . . . . Known Exits Taken 9 | . . . . 1 1 1 1 . 1 1 . . 1 1 . 1 . . Unknown Exits Taken 6 | 1 1 1 1 . . . . . . . 1 1 . . . . . . Scrap Searched . | . . . . . . . . . . . . . . . . . . . Spaces Dug 76 | . . 1 . 10 19 21 . . 13 7 . . 5 . . . . . Terrain Destroyed 202 | . 5 1 . 10 19 35 . . 13 27 28 21 43 . . . . . Melee 68 | . . 1 . 10 19 21 . . 13 2 . . 2 . . . . . Projectile 62 | . . . . . . . . . . . 28 21 13 . . . . . AOE 72 | . 5 . . . . 14 . . . 25 . . 28 . . . . . Terrain Rammed 4 | . . . . . . . . . . . . . . . . . 4 . Walls Destroyed . | . . . . . . . . . . . . . . . . . . . Machines Disabled . | . . . . . . . . . . . . . . . . . . . Actions | -11 -10 -9 -9 -8 -7 -6 -5 -5 -4 -4 -4 -4 -4 -3 -3 -2 -2 -2 --------- Run | Yrd Mat Mat Min Mat Fac Fac Fac DSF Fac Ext Cet Arc Hub Res DSF Res Gar Res Total 8075 | 54 197 327 252 801 874 1042 9 138 816 1696 505 124 184 52 107 72 390 435 Wait 1018 | . 14 3 2 65 38 23 . 1 90 459 24 . 9 . . . 222 68 Move 6177 | 38 127 275 249 666 739 951 9 103 668 1065 367 84 134 51 95 67 144 345 Hop 20 | . . 2 . 1 3 3 . 2 2 6 1 . . . . . . . Pick Up 87 | 5 . 9 . 16 4 8 . 9 8 5 14 2 . 1 2 2 1 1 Fast Attach 85 | 7 . 8 . 7 10 6 . 10 5 4 17 . 1 . 4 1 . 5 Attach 64 | . 3 3 . 4 7 7 . 5 5 6 8 2 7 . 2 2 2 1 Detach 17 | . . . . 2 3 2 . 2 2 3 1 . . . 1 . 1 . Swap 32 | . 1 1 . 5 2 1 . . 5 6 5 2 4 . . . . . Drop 110 | . 1 3 . 18 11 11 . 6 13 10 26 3 1 . . . 1 6 Fire 139 | 4 20 6 . . 4 1 . . . 6 32 31 17 . 3 . 15 . Melee 172 | . . 17 1 17 38 29 . . 18 34 10 . 8 . . . . . Ram 7 | . 2 . . . . . . . . . . . . . . . 4 1 Kick 3 | . . . . . . . . . . . . . 3 . . . . . Crush 37 | . 29 . . . . . . . . . . . . . . . . 8 Escape Stasis 49 | . . . . . 15 . . . . 34 . . . . . . . . Rewire 58 | . . . . . . . . . . 58 . . . . . . . . Trap . | . . . . . . . . . . . . . . . . . . . Miscellaneous . | . . . . . . . . . . . . . . . . . . . Route ------- -11/Scrapyard -10/Materials -9/Materials (discovered 2 exits: [*Min x2]) -9/Mines (discovered 2 exits: *Mat x2) -8/Materials (discovered 3 exits: *Fac x3) -7/Factory (discovered 3 exits: *Fac x3) -6/Factory (discovered 3 exits: *Fac / Low x2) -5/Factory -5/DSF -4/Factory (discovered 2 exits: *Res / *Ext) -4/Extension (discovered 2 exits: *Res / *Cet) -4/Cetus (discovered 2 exits: *Res / [*Arc]) -4/Archives -4/Hub_04(d) (discovered 4 exits: *Res x4) -3/Research -3/DSF -2/Research -2/Garrison (discovered 3 exits: *Res x3) -2/Research History --------- Turn | Location | Event 11 | -11/Scrapyard | Discovered new exit (range 16) 62 | -11/Scrapyard | Entered Materials 266 | -10/Materials | Core integrity fell below 50% 303 | -10/Materials | Build established: Mutant 335 | -10/Materials | Discovered new exit (range 5) 337 | -10/Materials | Entered another Materials area 337 | -9/Materials | Evolved 2 slots: Propulsion x1, Utility x1 357 | -9/Materials | Lost 5 parts (1p2n1u1w) 376 | -9/Materials | Discovered new exit (range 15) 449 | -9/Materials | Core integrity fell below 50% 489 | -9/Materials | Lost 6 parts (5n1w) 526 | -9/Materials | Discovered new exit (range 9) 549 | -9/Materials | Entered Mines 551 | -9/Mines | Assisted by bots powering up and referring to "LRC-V3" 557 | -9/Mines | Met a Derelict bent on vengeance 594 | -9/Mines | Discovered new exit (range 6) 620 | -9/Mines | Discovered new exit (range 10) 639 | -9/Mines | Entered Materials 639 | -8/Materials | Evolved 2 slots: Propulsion x2 724 | -8/Materials | Discovered new exit (range 10) 732 | -8/Materials | Central database locked down 770 | -8/Materials | Build established: Scavenger-Mutant 792 | -8/Materials | Discovered new exit (range 7) 815 | -8/Materials | Learned 4 Recycling zone layouts 886 | -8/Materials | Learned 4 Recycling zone layouts 945 | -8/Materials | Identified exit to Factory 1027 | -8/Materials | Learned 2 Lower Caves zone layouts 1041 | -8/Materials | Entered Factory 1041 | -7/Factory | Evolved 2 slots: Utility x2 1042 | -7/Factory | Identified exit to Factory 1161 | -7/Factory | Build established: Hacker-Sprinter 1484 | -7/Factory | Entered another Factory area 1484 | -6/Factory | Evolved 2 slots: Power x1, Propulsion x1 1629 | -6/Factory | Identified exit to Lower Caves 1652 | -6/Factory | Build established: Hacker-Mutant 1696 | -6/Factory | Discovered new exit (range 9) 1834 | -6/Factory | Search patrols dispatched 1834 | -6/Factory | Spotted B-75 Beast 1909 | -6/Factory | Lost 3 allies 2037 | -6/Factory | Lost 3 parts (2n1u) 2057 | -6/Factory | Identified exit to Factory 2057 | -6/Factory | Entered another Factory area 2057 | -5/Factory | Evolved 2 slots: Propulsion x1, Utility x1 2061 | -5/Factory | Identified exit to DSF 2061 | -5/Factory | Entered DSF 2061 | -5/DSF | Encountered a pitched battle between 0b10 and Warlord forces 2088 | -5/DSF | Spotted B-75 Beast 2106 | -5/DSF | Sterilization system engaged 2119 | -5/DSF | Lost 7 allies 2126 | -5/DSF | Ambient heat levels rising (+10) 2141 | -5/DSF | Ambient heat levels rising (+10) 2148 | -5/DSF | Discovered new exit (range 16) 2156 | -5/DSF | Ambient heat levels rising (+10) 2171 | -5/DSF | Ambient heat levels rising (+10) 2171 | -5/DSF | Identified exit to Factory 2171 | -5/DSF | Entered Factory 2171 | -4/Factory | Evolved 2 slots: Utility x1, Weapon x1 2253 | -4/Factory | Discovered new exit (range 7) 2343 | -4/Factory | Fabricated Nuclear Pulse Array? 2356 | -4/Factory | Discovered new exit (range 11) 2444 | -4/Factory | Build established: Hacker-Sprinter 2494 | -4/Factory | Identified exit to Extension 2520 | -4/Factory | Entered Extension 2579 | -4/Extension | Rescued a captive Derelict 2635 | -4/Extension | Destroyed 11 combat bots 2806 | -4/Extension | Spotted B-86 Titan 2807 | -4/Extension | Rescued a captive Derelict 2810 | -4/Extension | Lost 5 allies 3176 | -4/Extension | Spotted B-86 Titan 3183 | -4/Extension | Rescued a captive Derelict 3185 | -4/Extension | Rescued a captive Derelict 3221 | -4/Extension | Rescued A7 3252 | -4/Extension | Rescued a captive Derelict 3278 | -4/Extension | Rescued a captive Derelict 3278 | -4/Extension | Rescued a captive Derelict 3285 | -4/Extension | Rescued a captive Derelict 3286 | -4/Extension | Rescued a captive Derelict 3349 | -4/Extension | Discovered new exit (range 10) 3349 | -4/Extension | Discovered new exit (range 6) 3367 | -4/Extension | Identified exit to Cetus 3506 | -4/Extension | Entered Cetus 3506 | -4/Cetus | Accompanied by 5 allies (A7) 3511 | -4/Cetus | Acquired a Cetus Manufacturing Module code from A7 3543 | -4/Cetus | Spotted Cetus Guard 3543 | -4/Cetus | Spotted Cetus Guard 3544 | -4/Cetus | Spotted Cetus Guard 3544 | -4/Cetus | Destroyed Cetus Guard 3546 | -4/Cetus | Spotted Cetus Guard 3547 | -4/Cetus | Destroyed Cetus Guard 3565 | -4/Cetus | Destroyed Cetus Guard 3577 | -4/Cetus | Allies destroyed Cetus Guard 3771 | -4/Cetus | Discovered new exit (range 16) 3812 | -4/Cetus | Started Cetus Manufacturing Module 3837 | -4/Cetus | Manufactured an Enhanced Grunt 3862 | -4/Cetus | Manufactured an Enhanced Grunt 3864 | -4/Cetus | Spotted Cetus Guard 3865 | -4/Cetus | Spotted Cetus Guard 3866 | -4/Cetus | Destroyed Cetus Guard 3868 | -4/Cetus | Spotted Cetus Guard 3871 | -4/Cetus | Spotted Cetus Guard 3881 | -4/Cetus | Build established: Scavenger-Tank 3882 | -4/Cetus | Destroyed Cetus Guard 3886 | -4/Cetus | Allies destroyed Cetus Guard 3887 | -4/Cetus | Manufactured an Enhanced Grunt 3890 | -4/Cetus | Allies destroyed Cetus Guard 3899 | -4/Cetus | Found Prototype Device 3899 | -4/Cetus | Identified Exp. Thermal Shield 3911 | -4/Cetus | Discovered new exit (range 16) 3912 | -4/Cetus | Manufactured an Enhanced Grunt 3919 | -4/Cetus | Met Revision 17 3937 | -4/Cetus | Manufactured an Enhanced Grunt 4011 | -4/Cetus | Escorted A7 to Cetus Mainframe 4140 | -4/Cetus | Murdered 3 allies 4256 | -4/Cetus | Security sweep announced 4297 | -4/Cetus | Entered Archives 4297 | -4/Archives | Accompanied by 1 ally (A7) 4302 | -4/Archives | Received a hacking code to weaken MAIN.C 4457 | -4/Archives | Discovered new exit (range 15) 4507 | -4/Archives | Entered Hub_04(d) 4582 | -4/Hub_04(d) | Garrison activated, responded to threat 4633 | -4/Hub_04(d) | Network Hub disabled 4634 | -4/Hub_04(d) | Lost 6 parts (1p1n2u2w) 4659 | -4/Hub_04(d) | Spotted Lightning 4671 | -4/Hub_04(d) | Spotted Lightning 4671 | -4/Hub_04(d) | Spotted Lightning 4672 | -4/Hub_04(d) | Spotted Lightning 4672 | -4/Hub_04(d) | Spotted Lightning 4675 | -4/Hub_04(d) | Spotted Lightning 4707 | -4/Hub_04(d) | Network Hub disabled 4725 | -4/Hub_04(d) | System corruption reached 10% 4728 | -4/Hub_04(d) | Identified exit to Research 4728 | -4/Hub_04(d) | Network Hub disabled 4734 | -4/Hub_04(d) | Spotted B-86 Titan 4735 | -4/Hub_04(d) | Core integrity fell below 50% 4757 | -4/Hub_04(d) | Search patrols dispatched 4760 | -4/Hub_04(d) | Core integrity fell below 20% 4761 | -4/Hub_04(d) | Entered Research 4761 | -3/Research | Evolved 2 slots: Utility x2 4788 | -3/Research | Identified exit to DSF 4788 | -3/Research | Entered DSF 4792 | -3/DSF | Lost 15 parts (2p5n3u5w) 4829 | -3/DSF | Additional patrols routed to DSF 4846 | -3/DSF | Discovered new exit (range 16) 4855 | -3/DSF | Entered Research 4855 | -2/Research | Evolved 2 slots: Power x1, Utility x1 4865 | -2/Research | Lost 5 parts (1n3u1w) 4906 | -2/Research | Identified exit to Garrison 4909 | -2/Research | Entered Garrison 4919 | -2/Garrison | Discovered new exit (range 51) 4919 | -2/Garrison | Discovered new exit (range 56) 4919 | -2/Garrison | Discovered new exit (range 64) 4920 | -2/Garrison | Identified exit to Research 5021 | -2/Garrison | Build established: Hacker-Mutant 5224 | -2/Garrison | Spotted B-90 Cyclops 5231 | -2/Garrison | Triggered checkpoint 5240 | -2/Garrison | Core integrity fell below 50% 5251 | -2/Garrison | Entered Research 5343 | -2/Research | Core integrity fell below 20% 5468 | -2/Research | Spotted B-90 Cyclops 5480 | -2/Research | Allied Derelicts emerged from ambush trap array 5508 | -2/Research | Found Prototype Processor 5508 | -2/Research | Identified Exp. Targeting Computer 5548 | -2/Research | Build established: Mutant 5559 | -2/Research | Destroyed by G-73 Enforcer with Phase Gun Last Messages --------------- the area. 05494_ Gamma Bomb Trap short circuited. 05494_ K-01 Serf destroyed. 05494_ A bubble of electromagnetic force engulfs the area. 05494_ Gamma Bomb Trap short circuited. 05494_ A bubble of electromagnetic force engulfs the area. 05508_ Acquired Prototype Processor. 05508_ Identified Exp. Targeting Computer. 05514_ Acquired Imp. Melee Analysis Suite. 05527_ Penetrated by Slug. 05527_ Slug penetrates Wall. 05547_ &ZYQXL|YSPBY#IQ FNYNGQFO7RZJF4TV=I7&& 05547_ Slammed into Y-72 Warden. 05549_ Slammed into G-73 Enforcer. 05556_ Critical hit (Burn: +37). 05557_ Slammed into G-73 Enforcer. 05559_ Exp. Targeting Computer destroyed. 05559_ Slammed into G-73 Enforcer. Map ----- +----------------------------------------------------+ | ??????????????# != # #??????????????????# | | ??????????????# = # #??????????????????# | | ??????????????# # #################### | | ??????????????# # | | ??????????????# + | | ??????????????# # | | ??????????????# + | | ??????????????# ####+##########%###### | | ??????????????# ## #??????# #????? | | ??????????????# ## #??????# #????? | | ??????????????# ## #??????# #????? | | ??????????????#######/####### #??????# #????? | | ????????????????????# #?????# #??????# #????? | | ????????????????????# #?????# #??????# #????? | | ????????????????????# #?????# +??????? ?????? | | ?????????????######## #?????# #??????? ?????? | | ?????????????# # #?????# #??????? ?????? | | ?????????????# # ####??# +??????? ?????? | | ?????????????# + Y #??# #???????/?????? | | ?????????????# #### #??# #??????? ?????? | | ?????????????# ] #??# #??##+####??????? ?????? | | ?????????????# #??# #??????????????????????? | | ?????????????########??#g#??????????????????????? | | ???????????????????????# #??????????????????????? | | ???????????????????????# #??????????????????????? | | ???????????????????????#@#??????????????????????? | | ???????????????????????#g#??????????????????????? | | ??????????????????????? ??????????????????????? | | ??????????????????????? ??????????????????????? | | ?????????????????????? ?????????????????????? | | ?????????????????????? ?????????????????????? | | ?????????????????????# * #????????????????????? | | ?????????????????????## w##????????????????????? | | ??????????????????????# #?????????????????????? | | ??????????????????????# #?????????????????????? | | ??????????????????????# #?????????????????????? | | ??????????????????????# #?????????????????????? | | ??????????????????????# #?????????????????????? | | ??????????????????????? ??????????????????????? | | ??????????????????????? ??????????????????????? | | ??????????????????????? ??????????????????????? | | ????????????????????????????????????????????????? | | ????????????????????????H???????????????????????? | | ????????????????????????????????????????????????? | | ????????????????????????????????????????????????? | | ????????????????????????????????????????????????? | | ????????????????????????????????????????????????? | | ????????????????????????????????????????????????? | | ????????????????????????????????????????????????? | | ????????????????????????????????????????????????? | +----------------------------------------------------+ Best States ------------- Heat Dissipation 62 Energy Generation 41 Energy Capacity 515 Matter Stores 300 Matter Capacity 300 Sight Range 16 Robot Scan Range 15 Terrain Scan Range 16 Terrain Scan Density 10 Power Amplification 30 Armor Coverage 675 Resistance: TH 30 Evasion (%) 77 Targeting Accuracy 12 Melee Accuracy 24 Recoil Reduction 2 Offensive Hacking 24 Defensive Hacking 20 Authchip Count 3 Item Schematics ----------------- Flight Unit | -8/Materials | Hacked Cesium-ion Thruster | -8/Materials | Scanalyzed VSS Leg | -8/Materials | Scanalyzed System Shield | -8/Materials | Scanalyzed Med. Armor Plating | -8/Materials | Extracted Xenon Bombardment Thruster | -6/Factory | Scanalyzed Imp. Titanium Leg | -6/Factory | Scanalyzed Nuclear Pulse Array | -4/Factory | Scanalyzed Robot Schematics ------------------ M-13 Machinist | -8/Materials | Hacked Fabricated ------------ Nuclear Pulse Array | x1 | -4/Factory | Authchip Repaired ---------- Nothing Studied --------- Xenon Bombardment Thruster | -7/Factory | Hacked Power Maul | -6/Factory | Hacked Hvy. Missile Launcher | -6/Factory | Hacked Nuclear Pulse Thruster | -4/Factory | Hacked Nuclear Pulse Array | -4/Factory | Hacked Alien Tech Used ----------------- None Achievements -------------- Hot Goods Recruitment Drive Window Shopping Challenges ------------ None Game ------ Seed MultinovaCouplerGreatsword Manual? 0 Play Time 01:48:22 Cumulative 765.5 hours Start 2025.12.27 @ 19:27:25 End 2025.12.27 @ 21:12:15 Sessions 1 Manual Loads 0 Difficulty Rogue Special Mode None Game No. 185 Rogue 47 Adventurer 138 Explorer 0 Win Type - Total 11 Types 7/0/1/2/0/0/0/0/1/0 Lore% 79 Gallery% 78 Achievement% 55 Wizard Run 0 Options --------- Layout 2 ASCII 0 Keyboard 0 Movement Mouse Keybinds 0 Fullscreen 1 Font 24/Smallcaps Map View 50x49 Zoom Use 0% Tactical HUD 1 Map Filters NONE Filters NONE Steam 1 RUN: 7ae574ab-9502-479f-9411-509756f3758f